bitfinex-derivatives/quotes_SOLF0:USTF0_20240925
["timestamp","ask_amount","ask_price","bid_price","bid_amount"]
[1727238816045,11.4254,151.26,151.22,8.12]
[1727238816249,8.12,151.26,151.2,9.4049]
[1727238816451,11.4259,151.24,151.2,9.4049]
[1727238816648,11.4259,151.24,151.2,1.2849]
[1727238817550,11.4259,151.24,151.2,4.5915]
[1727238818351,11.4259,151.24,151.2,1.2849]
[1727238818751,8.12,151.21,151.18,1.2828]
[1727238818950,8.12,151.21,151.16,8.12]
[1727238819446,11.4266,151.21,151.14,63.01720205]
[1727238819653,11.4266,151.21,151.16,8.12]
[1727238820046,3.3063,151.22,151.17,3.3072]
[1727238820246,11.4263,151.22,151.16,8.12]
[1727238820648,11.4263,151.22,151.17,3.3072]
[1727238820946,11.4263,151.22,151.18,8.12]
[1727238821348,8.12,151.22,151.18,8.12]
[1727238822746,8.12,151.22,151.18,11.4271]
[1727238822747,11.4263,151.22,151.18,11.4271]
[1727238823556,8.12,151.23,151.19,3.3068]
[1727238824561,11.426,151.23,151.19,3.3068]
[1727238824759,276.40735,151.3,151.21,8.12]
[1727238824958,8.12,151.27,151.21,8.12]
[1727238825163,8.12,151.26,151.22,3.3061]
[1727238825355,8.12,151.26,151.21,8.12]
[1727238825555,11.4252,151.27,151.21,8.12]
[1727238825762,11.4252,151.27,151.2,2.6612]
[1727238825763,3.3052,151.27,151.24,3.3058]
[1727238826262,3.3052,151.27,151.23,3.306]
[1727238826462,8.12,151.26,151.23,3.306]
[1727238826650,11.4254,151.26,151.23,3.306]
[1727238829359,11.4257,151.25,151.2,2.6612]
[1727238830364,8.12,151.23,151.2,2.6612]
[1727238830663,3.306,151.24,151.2,10.7812]
[1727238831762,3.306,151.24,151.2,14.0877]
[1727238832159,11.4257,151.25,151.2,10.7812]
[1727238833765,11.4257,151.25,151.21,3.3064]
[1727238837270,3.3058,151.24,151.2,14.0878]
[1727238838061,3.3058,151.24,151.2,11.4266]
[1727238840071,8.12,151.22,151.15,2.702]
[1727238840278,8.12,151.22,151.17,8.12]
[1727238840482,8.12,151.22,151.18,8.12]
[1727238840880,3.3064,151.22,151.18,11.427]
[1727238841880,276.40735,151.3,151.2,8.12]
[1727238842072,8.12,151.26,151.2,8.12]
[1727238842277,3.3056,151.25,151.21,3.3063]
[1727238844382,11.4254,151.26,151.22,3.3062]
[1727238844682,8.12,151.26,151.22,11.4262]
[1727238844886,284.52735,151.3,151.25,8.12]
[1727238845183,8.12,151.28,151.23,8.12]
[1727238845376,8.12,151.28,151.15,2.702]
[1727238845377,8.12,151.26,151.21,8.12]
[1727238845577,11.4254,151.26,151.22,3.3061]
[1727238848586,11.4256,151.25,151.21,3.3064]
[1727238848985,8.12,151.25,151.21,3.3064]
[1727238849481,11.4254,151.26,151.21,11.4264]
[1727238849682,11.4254,151.26,151.22,3.3062]
[1727238851391,8.12,151.23,151.15,2.702]
[1727238851588,8.12,151.23,151.17,8.12]
[1727238851784,3.3064,151.22,151.18,3.3071]
[1727238852087,3.3064,151.22,151.17,8.12]
[1727238852088,8.12,151.21,151.17,8.12]
[1727238852288,8.12,151.21,151.17,11.4272]
[1727238852480,11.4265,151.21,151.17,11.4272]
[1727238853991,11.4265,151.21,151.16,3.3075]
[1727238854193,11.4265,151.21,151.16,11.4275]
[1727238854993,8.12,151.21,151.16,8.12]
[1727238855787,11.4265,151.21,151.17,3.3073]
[1727238857395,11.4263,151.22,151.18,3.3071]
[1727238857794,11.4263,151.22,151.18,11.4271]
[1727238858298,8.12,151.22,151.19,3.3068]
[1727238858496,13.17580641,151.29,151.18,8.12]
[1727238858699,8.12,151.24,151.18,8.12]
[1727238859796,11.4259,151.24,151.2,3.3066]
[1727238860196,3.3059,151.24,151.2,11.4266]
[1727238860391,11.4257,151.25,151.2,11.4266]
[1727238862491,11.4257,151.25,151.21,3.3064]
[1727238863103,11.4257,151.25,151.22,3.3062]
[1727238863704,1.00391326,151.28,151.23,3.306]
[1727238863705,11.4254,151.26,151.23,3.306]
[1727238864010,9.12391326,151.28,151.23,8.12]
[1727238864192,8.12,151.28,151.23,8.12]
[1727238864803,3.3052,151.27,151.24,3.3058]
[1727238865095,3.3052,151.27,151.23,8.12]
[1727238865804,3.3052,151.27,151.23,11.426]
[1727238866005,8.12,151.25,151.15,2.702]
[1727238866199,8.12,151.25,151.2,8.12]
[1727238866505,11.4256,151.25,151.22,3.3062]
[1727238867310,11.4256,151.25,151.21,3.3064]
[1727238867803,3.3058,151.24,151.2,11.4265]
[1727238869797,11.4256,151.25,151.2,11.4265]
[1727238872605,3.3063,151.22,151.18,3.307]
[1727238872803,8.12,151.23,151.17,8.12]
[1727238873408,13.19657025,151.29,151.17,8.12]
[1727238873603,8.12,151.24,151.19,8.12]
[1727238873904,8.12,151.2,151.15,10.822]
[1727238874298,8.12,151.2,151.16,3.3075]
[1727238875809,11.4267,151.2,151.16,3.3075]
[1727238876507,3.3067,151.2,151.16,11.4275]
[1727238876909,3.33564628,151.22,151.15,2.702]
[1727238877209,3.6924,151.26,151.16,8.12]
[1727238877411,8.12,151.21,151.17,3.3071]
[1727238878317,11.4265,151.21,151.17,3.3071]
[1727238880413,3.3072,151.18,151.15,2.702]
[1727238880618,8.12,151.19,151.15,2.702]
[1727238880820,8.12,151.2,151.15,2.702]
[1727238881014,8.12,151.2,151.16,8.12]
[1727238881216,8.12,151.2,151.17,3.3073]
[1727238881416,8.12,151.2,151.16,8.12]
[1727238881717,8.12,151.2,151.15,2.702]
[1727238881915,8.12,151.2,151.15,10.822]
[1727238882417,11.4268,151.2,151.15,10.822]
[1727238883014,3.3069,151.19,151.15,14.1297]
[1727238883215,11.4269,151.19,151.15,14.1297]
[1727238884124,11.4269,151.19,151.15,10.822]
[1727238885025,3.3069,151.19,151.15,10.822]
[1727238885827,3.3069,151.19,151.15,14.1298]
[1727238886524,11.4267,151.2,151.15,14.1298]
[1727238887224,3.307,151.19,151.15,2.702]
[1727238887424,8.12,151.2,151.15,10.822]
[1727238887827,3.3069,151.19,151.15,14.1296]
[1727238888427,3.3067,151.2,151.16,3.3075]
[1727238888629,8.12,151.22,151.18,8.12]
[1727238888929,3.3066,151.21,151.18,8.12]
[1727238889521,11.4264,151.22,151.18,11.427]
[1727238889925,8.12,151.22,151.18,11.427]
[1727238891331,3.33575691,151.23,151.18,11.427]
[1727238891635,2.726,151.26,151.2,8.12]
[1727238891821,8.12,151.25,151.2,8.12]
[1727238892726,3.3059,151.24,151.2,11.4265]
[1727238893127,3.3061,151.23,151.2,11.4265]
[1727238893323,96.87654051,151.29,151.22,8.12]
[1727238893529,104.99654051,151.29,151.24,8.12]
[1727238894233,104.99654051,151.29,151.25,8.12]
[1727238894234,3.3049,151.29,151.25,8.12]
[1727238895934,3.3049,151.29,151.25,11.4254]
[1727238896333,287.83185,151.3,151.26,3.3053]
[1727238896534,279.71185,151.3,151.26,3.3053]
[1727238897836,3.3047,151.29,151.25,11.4255]
[1727238898237,284.52735,151.3,151.24,8.12]
[1727238898533,284.52735,151.3,151.25,8.12]
[1727238898934,284.52735,151.3,151.27,8.12]
[1727238899135,276.40735,151.3,151.27,8.12]
[1727238899638,279.71185,151.3,151.27,8.12]
[1727238899837,276.40735,151.3,151.28,8.12]
[1727238900027,276.40735,151.3,151.29,8.12]
[1727238901839,179.43925,151.3,151.29,11.4247]
[1727238902037,164.14925001,151.3,151.29,11.4247]
[1727238902234,164.14925001,151.3,151.29,14.77214081]
[1727238902235,140.08805001,151.3,151.29,14.77214081]
[1727238904435,107.22805001,151.3,151.29,14.77214081]
[1727238904838,95.03805001,151.3,151.29,14.77214081]
[1727238906448,94.03805001,151.3,151.29,14.77214081]
[1727238906946,90.56695001,151.3,151.29,14.77214081]
[1727238907140,89.56695001,151.3,151.29,14.77214081]
[1727238907443,56.70695001,151.3,151.29,14.77214081]
[1727238907635,53.39695001,151.3,151.29,11.4247]
[1727238907834,53.39695001,151.3,151.29,349.4247]
[1727238908033,3.3019,151.42,151.37,3.3029]
[1727238908241,3.3019,151.42,151.38,8.12]
[1727238910341,8.12,151.4,151.29,341.2769471]
[1727238910539,8.12,151.39,151.34,8.12]
[1727238911548,3.3029,151.38,151.34,8.12]
[1727238912145,3.3031,151.37,151.34,8.12]
[1727238913249,3.3028,151.38,151.34,8.12]
[1727238915350,8.12,151.38,151.28,79.34]
[1727238915551,8.12,151.38,151.32,8.12]
[1727238915552,2.7075,151.37,151.32,8.12]
[1727238916146,3.3033,151.36,151.32,8.12]
[1727238918354,3.3034,151.35,151.32,8.12]
[1727238918655,10.8275,151.37,151.32,8.12]
[1727238919249,3.3032,151.36,151.32,8.12]
[1727238923860,3.3032,151.36,151.33,8.12]
[1727238927167,2.7075,151.37,151.32,3.304]
[1727238927368,2.7075,151.37,151.32,11.424]
[1727238928773,3.3032,151.36,151.32,11.424]
[1727238930268,6.56955822,151.36,151.32,11.424]
[1727238930473,3.3032,151.36,151.32,11.424]
[1727238931563,6.0105,151.37,151.34,8.12]
[1727238931769,3.35062789,151.36,151.34,8.12]
[1727238931964,3.3032,151.36,151.32,3.304]
[1727238932272,3.3032,151.36,151.32,11.424]
[1727238932672,6.6396145,151.36,151.32,11.424]
[1727238933473,3.3364145,151.36,151.32,11.424]
[1727238933675,14.1305,151.37,151.32,11.424]
[1727238934372,3.30006652,151.36,151.32,11.424]
[1727238934574,14.1305,151.37,151.32,11.424]
[1727238934869,3.37144074,151.36,151.32,11.424]
[1727238935075,3.3032,151.36,151.32,11.424]
[1727238935578,6.53354448,151.36,151.32,11.424]
[1727238937078,3.3032,151.36,151.32,11.424]
[1727238937374,6.67002088,151.36,151.32,11.424]
[1727238937772,3.3032,151.36,151.32,11.424]
[1727238939075,14.1305,151.37,151.33,3.3038]
[1727238939677,2.7075,151.37,151.34,8.12]
[1727238939877,2.7075,151.37,151.31,3.3041]
[1727238940079,8.12,151.36,151.31,11.4241]
[1727238940279,11.4233,151.36,151.31,8.12]
[1727238940477,3.3033,151.36,151.29,3.31163251]
[1727238940675,14.1305,151.37,151.32,11.424]
[1727238941275,14.1305,151.37,151.33,3.3038]
[1727238941475,2.7075,151.37,151.34,8.12]
[1727238943076,2.7075,151.37,151.33,3.3038]
[1727238943276,2.7075,151.37,151.33,11.4238]
[1727238943677,8.12,151.36,151.32,3.304]
[1727238944283,10.8275,151.37,151.32,3.304]
[1727238944481,10.8275,151.37,151.32,11.424]
[1727238944981,3.3032,151.36,151.32,8.12]
[1727238945977,3.3032,151.36,151.31,3.3042]
[1727238946179,3.3032,151.36,151.32,8.12]
[1727238948688,3.3032,151.36,151.33,8.12]
[1727238948887,3.3032,151.36,151.31,3.3042]
[1727238949086,3.3032,151.36,151.33,8.12]
[1727238953491,6.0105,151.37,151.33,11.4238]
[1727238953879,6.0105,151.37,151.33,8.12]
[1727238954083,3.3032,151.36,151.33,8.12]
[1727238957190,3.3032,151.36,151.32,3.304]
[1727238957391,3.3032,151.36,151.32,11.424]
[1727238959191,3.3032,151.36,151.32,8.12]
[1727238959489,3.3034,151.35,151.32,8.12]
[1727238960186,3.3034,151.35,151.31,11.4241]
[1727238960395,11.4234,151.35,151.31,8.12]
[1727238960590,3.3036,151.34,151.31,8.12]
[1727238961491,2.7075,151.37,151.31,8.12]
[1727238961684,2.7075,151.37,151.35,8.12]
[1727238962192,8.12,151.4,151.35,8.12]
[1727238962193,3.3029,151.38,151.35,8.12]
[1727238963792,3.3029,151.38,151.34,3.3036]
[1727238963793,8.12,151.38,151.22,79.3]
[1727238964090,8.12,151.37,151.31,8.12]
[1727238964289,8.12,151.37,151.32,8.12]
[1727238965694,8.12,151.36,151.22,79.3]
[1727238965892,8.12,151.34,151.29,8.12]
[1727238966297,11.4238,151.34,151.29,11.4245]
[1727238966596,11.4238,151.34,151.29,8.12]
[1727238967393,11.4238,151.34,151.27,3.27649167]
[1727238967597,3.3035,151.35,151.3,11.4243]
[1727238968001,10.8759,151.36,151.3,11.4243]
[1727238968002,3.3036,151.34,151.3,11.4243]
[1727238968296,3.3036,151.34,151.3,8.12]
[1727238968897,3.3038,151.33,151.3,8.12]
[1727238969299,3.3038,151.33,151.29,11.4247]
[1727238969598,3.3041,151.32,151.27,8.12]
[1727238970091,3.3041,151.32,151.27,11.425]
[1727238970294,3.3043,151.31,151.27,3.305]
[1727238970491,8.12,151.33,151.28,8.12]
[1727238971096,3.3042,151.32,151.28,8.12]
[1727238972293,2.7559,151.36,151.31,8.12]
[1727238972798,3.3036,151.34,151.31,8.12]
[1727238973401,3.3034,151.35,151.31,11.4242]
[1727238973800,10.8759,151.36,151.31,11.4242]
[1727238973998,3.3036,151.34,151.31,8.12]
[1727238975101,3.3039,151.33,151.3,3.3044]
[1727238975302,3.3039,151.33,151.29,11.4246]
[1727238975506,8.12,151.33,151.28,8.12]
[1727238975696,3.3042,151.32,151.28,8.12]
[1727238976097,8.12,151.33,151.28,11.4247]
[1727238976497,3.3041,151.32,151.28,11.4247]
[1727238977208,3.3039,151.33,151.31,8.12]
[1727238978303,3.3039,151.33,151.3,8.12]
[1727238980110,8.12,151.32,151.28,3.3049]
[1727238980307,8.12,151.31,151.26,8.12]
[1727238980504,8.12,151.32,151.27,8.12]
[1727238980699,11.4242,151.32,151.28,3.3049]
[1727238980904,11.4242,151.32,151.28,11.4249]
[1727238981907,11.4242,151.32,151.28,8.12]
[1727238982811,3.3042,151.32,151.28,8.12]
[1727238983510,3.3039,151.33,151.29,8.12]
[1727238984100,3.3041,151.32,151.29,8.12]
[1727238984409,8.12,151.32,151.25,3.28276041]
[1727238984604,8.12,151.32,151.28,8.12]
[1727238985910,3.3043,151.31,151.28,8.12]
[1727238989109,11.4241,151.32,151.28,8.12]
[1727238989314,3.3041,151.32,151.29,8.12]
[1727238993414,3.304,151.33,151.29,8.12]
[1727238995310,3.3036,151.34,151.3,8.12]
[1727238996012,3.3038,151.33,151.29,11.4245]
[1727238996408,3.3038,151.33,151.29,8.12]
[1727238997211,3.3041,151.32,151.28,3.3048]
[1727238997409,3.3041,151.32,151.28,11.4248]
[1727238997606,3.3041,151.32,151.27,3.3051]
[1727238997806,8.12,151.33,151.27,3.3051]
[1727238997807,8.12,151.33,151.27,8.12]
[1727238998315,8.12,151.28,151.21,79.32]
[1727238998610,8.12,151.28,151.22,8.12]
[1727238999203,8.12,151.28,151.21,82.61333716]
[1727238999406,3.3051,151.27,151.22,11.4262]
[1727238999802,11.425,151.28,151.23,3.306]
[1727239000017,10.8171,151.3,151.25,8.12]
[1727239000508,3.3049,151.29,151.25,8.12]
[1727239002525,3.3049,151.28,151.24,8.12]
[1727239002808,8.12,151.28,151.24,8.12]
[1727239003008,3.3053,151.27,151.24,8.12]
[1727239003408,8.12,151.28,151.17,63.00895772]
[1727239003614,8.12,151.28,151.23,8.12]
[1727239003807,2.6971,151.3,151.23,8.12]
[1727239004009,8.12,151.28,151.23,8.12]
[1727239005111,8.12,151.28,151.17,66.23935809]
[1727239005308,8.12,151.28,151.23,8.12]
[1727239005815,3.3054,151.26,151.23,8.12]
[1727239009115,3.3051,151.27,151.23,8.12]
[1727239010421,3.305,151.28,151.24,8.12]
[1727239011019,3.305,151.28,151.24,11.4258]
[1727239012616,3.305,151.28,151.24,3.3058]
[1727239012920,3.305,151.28,151.24,11.4258]
[1727239013420,2.6971,151.3,151.26,8.12]
[1727239013617,3.33696628,151.33,151.29,8.12]
[1727239013821,9.4429,151.35,151.29,8.12]
[1727239014123,3.304,151.33,151.29,8.12]
[1727239014327,3.304,151.33,151.3,8.12]
[1727239015023,3.3037,151.34,151.3,11.4245]
[1727239015416,3.3039,151.33,151.3,11.4245]
[1727239015821,3.3039,151.33,151.3,3.3045]
[1727239016322,3.3039,151.33,151.29,11.4246]
[1727239023424,1.3229,151.35,151.3,8.12]
[1727239023630,8.12,151.37,151.24,62.98014724]
[1727239023829,8.12,151.37,151.32,8.12]
[1727239025025,3.3033,151.36,151.32,11.424]
[1727239027024,3.303,151.37,151.34,8.12]
[1727239027232,1.3512,151.4,151.35,8.12]
[1727239027631,1.3349,151.44,151.24,400.98014724]
[1727239027632,1.3349,151.44,151.38,8.12]
[1727239027835,1.00419532,151.43,151.4,8.12]
[1727239028135,3.3022,151.41,151.37,8.12]
[1727239028733,3.3022,151.41,151.37,11.4228]
[1727239029334,3.3024,151.4,151.36,11.4231]
[1727239030328,8.12,151.39,151.34,3.3036]
[1727239030631,8.12,151.39,151.34,11.4236]
[1727239031135,1.3349,151.44,151.37,8.12]
[1727239031328,8.12,151.42,151.37,8.12]
[1727239031529,3.3023,151.4,151.36,8.12]
[1727239032630,3.3023,151.4,151.37,8.12]
[1727239033532,3.3021,151.41,151.37,8.12]
[1727239033923,8.12,151.42,151.37,8.12]
[1727239034527,3.3025,151.4,151.37,8.12]
[1727239035526,3.3021,151.41,151.38,8.12]
[1727239037328,8.12,151.4,151.35,8.12]
[1727239037532,8.12,151.4,151.36,8.12]
[1727239037831,1.3349,151.44,151.36,8.12]
[1727239037832,8.12,151.42,151.36,8.12]
[1727239038030,3.3026,151.39,151.36,8.12]
[1727239038430,1.3349,151.44,151.36,8.12]
[1727239038735,9.12493863,151.43,151.38,8.12]
[1727239038928,8.12,151.41,151.37,8.12]
[1727239040326,3.3027,151.39,151.37,8.12]
[1727239041132,3.3023,151.4,151.37,8.12]
[1727239042339,8.12,151.41,151.37,8.12]
[1727239043833,3.3027,151.39,151.37,8.12]
[1727239044232,3.3027,151.39,151.35,3.3033]
[1727239044435,3.3027,151.39,151.36,8.12]
[1727239045839,3.3024,151.4,151.37,8.12]
[1727239046640,1.3349,151.44,151.32,3.33245225]
[1727239046641,1.3349,151.44,151.39,8.12]
[1727239047840,3.3019,151.42,151.39,11.4225]
[1727239048936,3.3017,151.43,151.4,11.4223]
[1727239049541,3.3017,151.43,151.4,8.12]
[1727239049737,3.3019,151.42,151.39,3.3024]
[1727239049938,3.3019,151.42,151.4,8.12]
[1727239050544,1.3349,151.44,151.41,3.3021]
[1727239050845,1.3349,151.44,151.41,11.4221]
[1727239051039,4.6365,151.44,151.41,8.12]
[1727239052944,3.3017,151.43,151.41,8.12]
[1727239053143,1.3349,151.44,151.4,8.12]
[1727239053546,3.3017,151.43,151.4,8.12]
[1727239054146,3.3017,151.43,151.41,8.12]
[1727239054847,3.3017,151.43,151.4,3.3023]
[1727239055045,3.3019,151.42,151.41,8.12]
[1727239055851,3.3017,151.43,151.41,8.12]
[1727239057649,3.3019,151.42,151.39,3.3025]
[1727239057842,3.3019,151.42,151.41,8.12]
[1727239065049,115.3426,151.72,151.41,8.12]
[1727239065253,28.58660537,151.54,151.47,8.12]
[1727239065452,8.12,151.52,151.47,8.12]
[1727239065844,11.35577987,151.51,151.47,8.12]
[1727239066046,8.12,151.51,151.45,8.12]
[1727239066251,8.12,151.47,151.39,62.92061993]
[1727239066444,8.12,151.47,151.42,8.12]
[1727239066853,3.3013,151.45,151.42,8.12]
[1727239067056,8.12,151.49,151.43,8.12]
[1727239067445,3.3011,151.46,151.43,8.12]
[1727239067645,8.12,151.49,151.43,8.12]
[1727239067952,3.3014,151.44,151.43,8.12]
[1727239068357,8.12,151.47,151.42,8.12]
[1727239068859,3.3016,151.44,151.42,8.12]
[1727239069054,3.3016,151.44,151.39,69.51802645]
[1727239069549,3.3016,151.44,151.42,8.12]
[1727239070256,3.3016,151.44,151.39,69.51802645]
[1727239070257,8.12,151.45,151.39,62.92061993]
[1727239070452,8.12,151.45,151.4,8.12]
[1727239071153,8.12,151.45,151.41,8.12]
[1727239071547,3.3016,151.44,151.41,8.12]
[1727239072054,8.12,151.45,151.41,8.12]
[1727239072654,3.3017,151.43,151.41,8.12]
[1727239075455,3.3016,151.44,151.41,8.12]
[1727239076555,3.3017,151.43,151.41,8.12]
[1727239077156,3.3012,151.46,151.41,8.12]
[1727239077459,8.12,151.47,151.41,8.12]
[1727239077660,3.3016,151.44,151.41,8.12]
[1727239078166,8.12,151.47,151.41,8.12]
[1727239080461,3.3017,151.43,151.41,8.12]
[1727239081461,3.3017,151.43,151.4,8.12]
[1727239081662,3.3019,151.42,151.4,8.12]
[1727239083465,8.12,151.46,151.4,8.12]
[1727239083664,8.12,151.46,151.39,62.92061993]
[1727239083862,8.12,151.46,151.4,8.12]
[1727239084661,3.3018,151.43,151.4,8.12]
[1727239084860,8.12,151.46,151.41,8.12]
[1727239085457,3.3019,151.42,151.41,8.12]
[1727239085862,3.3019,151.42,151.4,8.12]
[1727239087761,3.3021,151.41,151.38,3.37152542]
[1727239088062,1.3122,151.47,151.37,8.12]
[1727239088063,8.12,151.42,151.37,8.12]
[1727239088368,3.3026,151.39,151.37,8.12]
[1727239095277,3.3029,151.38,151.35,3.27507882]
[1727239095474,3.3029,151.38,151.33,3.3037]
[1727239095674,3.3029,151.38,151.34,8.12]
[1727239097366,8.12,151.4,151.34,8.12]
[1727239097569,3.303,151.37,151.34,8.12]
[1727239101079,3.3028,151.38,151.35,8.12]
[1727239106282,1.3555,151.42,151.27,82.61025037]
[1727239106283,8.12,151.36,151.27,82.61025037]
[1727239106483,8.12,151.36,151.32,8.12]
[1727239107380,3.3034,151.35,151.32,8.12]
[1727239110481,3.3034,151.35,151.33,8.12]
[1727239115389,3.3036,151.34,151.32,8.12]
[1727239120290,3.3038,151.33,151.3,8.12]
[1727239120488,8.12,151.34,151.24,400.98014724]
[1727239120789,3.3042,151.32,151.28,8.12]
[1727239120997,8.12,151.33,151.27,3.305]
[1727239121291,3.3043,151.31,151.28,8.12]
[1727239128499,3.3043,151.31,151.27,3.305]
[1727239128694,3.3043,151.31,151.27,8.12]
[1727239132599,3.3043,151.31,151.27,11.39140836]
[1727239133892,3.3043,151.31,151.27,14.69640836]
[1727239136805,3.3042,151.32,151.28,3.3049]
[1727239138608,3.3042,151.32,151.27,14.69650836]
[1727239143508,8.12,151.33,151.29,3.3046]
[1727239143712,2.7144,151.35,151.27,3.27140836]
[1727239143909,1.35,151.35,151.32,8.12]
[1727239144108,8.12,151.38,151.32,14.77782784]
[1727239144608,3.3034,151.35,151.32,11.47382784]
[1727239145507,3.3034,151.35,151.32,3.35382784]
[1727239145909,8.12,151.34,151.29,11.4246]
[1727239146703,8.12,151.34,151.29,14.68709338]
[1727239147811,3.304,151.33,151.29,14.68709338]
[1727239148112,3.304,151.33,151.3,8.12]
[1727239148310,8.12,151.34,151.3,11.4244]
[1727239148311,11.4236,151.34,151.3,11.4244]
[1727239148512,11.4236,151.34,151.3,8.12]
[1727239149509,3.3036,151.34,151.3,8.12]
[1727239149704,11.4236,151.34,151.3,8.12]
[1727239152515,3.3039,151.33,151.3,8.12]
[1727239154615,11.4237,151.34,151.3,8.12]
[1727239155009,1.332,151.36,151.31,8.12]
[1727239155215,1.332,151.36,151.32,8.12]
[1727239156418,4.6353,151.36,151.32,11.4239]
[1727239156616,3.3033,151.36,151.32,11.4239]
[1727239160021,1.3071,151.43,151.31,3.28750092]
[1727239160022,1.3071,151.43,151.35,8.12]
[1727239160222,8.12,151.4,151.35,8.12]
[1727239160825,8.12,151.4,151.35,11.4232]
[1727239160826,3.3025,151.39,151.35,11.4232]
[1727239161023,3.3025,151.39,151.35,14.80742099]
[1727239171732,3.3025,151.39,151.35,8.12]
[1727239171934,3.3028,151.38,151.35,8.12]
[1727239172134,8.12,151.4,151.34,8.12]
[1727239174342,3.303,151.37,151.34,8.12]
[1727239176937,3.303,151.37,151.33,3.26064403]
[1727239177135,3.3032,151.36,151.33,11.38064403]
[1727239180040,3.303,151.37,151.34,8.12]
[1727239180245,8.12,151.4,151.35,8.12]
[1727239180847,3.3025,151.39,151.35,14.65176186]
[1727239182448,3.3023,151.4,151.36,11.4231]
[1727239182951,10.8507,151.42,151.37,3.3028]
[1727239182952,3.3021,151.41,151.37,3.3028]
[1727239183151,10.8507,151.42,151.37,3.3028]
[1727239183346,10.8507,151.42,151.36,8.12]
[1727239183956,3.3023,151.4,151.36,11.423]
[1727239184348,3.3023,151.4,151.38,8.12]
[1727239184846,6.0326,151.42,151.39,8.12]
[1727239185449,3.3021,151.41,151.38,3.3026]
[1727239185656,3.3021,151.41,151.38,8.12]
[1727239185847,2.7307,151.42,151.37,11.4229]
[1727239186754,3.3023,151.4,151.37,11.4229]
[1727239187158,3.3023,151.4,151.37,8.12]
[1727239189957,3.3023,151.4,151.38,8.12]
[1727239190157,2.7307,151.42,151.39,8.12]
[1727239193253,2.7307,151.42,151.29,417.28]
[1727239193457,2.7307,151.42,151.37,8.12]
[1727239193658,2.7307,151.42,151.37,11.45729425]
[1727239193962,3.3022,151.41,151.37,11.45729425]
[1727239194461,3.3022,151.41,151.38,8.12]
[1727239196158,3.3023,151.4,151.37,3.33729425]
[1727239196457,3.3023,151.4,151.37,11.45729425]
[1727239198463,3.3021,151.41,151.37,11.45729425]
[1727239199063,3.3021,151.41,151.38,8.12]
[1727239199665,6.0327,151.42,151.38,8.12]
[1727239200767,3.3021,151.41,151.38,8.12]
[1727239203966,6.0326,151.42,151.38,11.4227]
[1727239204267,6.0326,151.42,151.38,8.12]
[1727239205266,8.12,151.46,151.39,8.12]
[1727239205965,3.3018,151.43,151.39,11.4224]